[Event "World Junior Chess Championship U20 2022"]
[White "Milosevic, Milos"]
[Black "Hercegovac, Neven"]
[WhiteFideId "964875"]
[BlackFideId "2839135"]
[WhiteElo "2379"]
[BlackElo "2175"]
[Result "1-0"]
[Round "03"]
[TimeControl "5400+30"]
[Date "2022.10.13"]
[WhiteClock "0:22:38"]
[BlackClock "0:23:36"]

1. e4 {[%clk 1:29:42]}  c5 {[%clk 1:30:21]} 2. Nc3 {[%clk 1:30:07]}  Nc6 {[%clk 1:30:32]} 3. Bb5 {[%clk 1:30:26]}  Nd4 {[%clk 1:30:56]} 4. Nf3 {[%clk 1:30:53]}  g6 {[%clk 1:30:17]} 5. Ba4 {[%clk 1:29:21]}  Bg7 {[%clk 1:30:15]} 6. O-O {[%clk 1:28:46]}  Nf6 {[%clk 1:19:13]} 7. d3 {[%clk 1:21:41]}  O-O {[%clk 1:18:59]} 8. Nxd4 {[%clk 1:21:42]}  cxd4 {[%clk 1:19:24]} 9. Ne2 {[%clk 1:21:22]}  Qb6 {[%clk 1:13:16]} 10. c3 {[%clk 1:20:12]}  dxc3 {[%clk 1:12:02]} 11. bxc3 {[%clk 1:20:32]}  d6 {[%clk 1:11:36]} 12. Be3 {[%clk 1:19:46]}  Qa5 {[%clk 1:11:19]} 13. h3 {[%clk 1:18:55]}  Bd7 {[%clk 1:05:01]} 14. Bb3 {[%clk 1:18:45]}  Rac8 {[%clk 0:59:42]} 15. f4 {[%clk 1:18:41]}  a6 {[%clk 0:52:23]} 16. Qe1 {[%clk 1:17:41]}  Ba4 {[%clk 0:50:51]} 17. Rb1 {[%clk 1:15:53]}  Bxb3 {[%clk 0:47:21]} 18. axb3 {[%clk 1:16:11]}  Nd7 {[%clk 0:46:58]} 19. b4 {[%clk 1:15:36]}  Qc7 {[%clk 0:40:57]} 20. Qh4 {[%clk 1:09:52]}  Bf6 {[%clk 0:36:55]} 21. Qf2 {[%clk 1:09:26]}  b5 {[%clk 0:36:32]} 22. g4 {[%clk 1:07:22]}  Qb7 {[%clk 0:36:09]} 23. Rb3 {[%clk 0:52:20]}  Rc6 {[%clk 0:35:34]} 24. d4 {[%clk 0:49:53]}  Nb6 {[%clk 0:33:50]} 25. d5 {[%clk 0:47:57]}  Rc4 {[%clk 0:32:50]} 26. g5 {[%clk 0:40:25]}  Rxe4 {[%clk 0:30:38]} 27. Bxb6 {[%clk 0:35:09]}  Qxd5 {[%clk 0:29:04]} 28. Qf3 {[%clk 0:27:45]}  Bg7 {[%clk 0:26:44]} 29. Ra3 {[%clk 0:25:14]}  Qc4 {[%clk 0:25:02]} 30. Ng3 {[%clk 0:25:07]}  Re6 {[%clk 0:25:17]} 31. f5 {[%clk 0:25:04]}  Re5 {[%clk 0:25:12]} 32. Bd4 {[%clk 0:24:54]}  Rd5 {[%clk 0:25:26]} 33. f6 {[%clk 0:22:32]}  exf6 {[%clk 0:25:38]} 34. gxf6 {[%clk 0:22:55]}  Bh6 {[%clk 0:25:49]} 35. Rxa6 {[%clk 0:22:32]}  Re8 {[%clk 0:25:01]} 36. Rfa1 {[%clk 0:22:05]}  Rxd4 {[%clk 0:24:11]} 37. cxd4 {[%clk 0:22:24]}  Be3+ {[%clk 0:23:36]} 38. Qxe3 {[%clk 0:22:38]} 1-0


[Site "http://www.chessbomb.com"]

[Event "World Junior Chess Championship U20 2022"]
[White "Stremavicius, Pijus"]
[Black "Atanasov, Anthony"]
[WhiteFideId "12812730"]
[BlackFideId "2623897"]
[WhiteElo "2363"]
[BlackElo "2148"]
[Result "1-0"]
[Round "03"]
[TimeControl "5400+30"]
[Date "2022.10.13"]
[WhiteClock "0:36:46"]
[BlackClock "0:05:08"]

1. d4 {[%clk 1:30:57]}  Nf6 {[%clk 0:00:00]} 2. c4 {[%clk 1:31:23]}  g6 {[%clk 1:31:19]} 3. Nc3 {[%clk 1:31:49]}  d5 {[%clk 1:31:41]} 4. cxd5 {[%clk 1:32:14]}  Nxd5 {[%clk 1:32:04]} 5. e4 {[%clk 1:32:40]}  Nxc3 {[%clk 1:32:27]} 6. bxc3 {[%clk 1:33:07]}  Bg7 {[%clk 1:32:50]} 7. Bc4 {[%clk 1:33:32]}  c5 {[%clk 1:32:59]} 8. Ne2 {[%clk 1:33:57]}  O-O {[%clk 1:33:06]} 9. Be3 {[%clk 1:33:57]}  Nc6 {[%clk 1:33:27]} 10. Rc1 {[%clk 1:33:59]}  cxd4 {[%clk 1:29:35]} 11. cxd4 {[%clk 1:33:02]}  Qa5+ {[%clk 1:28:59]} 12. Rc3 {[%clk 1:33:23]}  Nxd4 {[%clk 1:01:58]} 13. Bxd4 {[%clk 1:33:23]}  Rd8 {[%clk 1:02:18]} 14. Qd2 {[%clk 1:17:03]}  e5 {[%clk 1:02:36]} 15. Bxf7+ {[%clk 1:15:00]}  Kh8 {[%clk 1:02:58]} 16. Rd3 {[%clk 1:13:23]}  Qxd2+ {[%clk 1:03:21]} 17. Kxd2 {[%clk 1:13:48]}  exd4 {[%clk 1:03:47]} 18. Bd5 {[%clk 1:14:03]}  Bf5 {[%clk 0:59:38]} 19. Rb1 {[%clk 1:02:13]}  Rab8 {[%clk 0:48:30]} 20. Rxb7 {[%clk 0:57:43]}  Rxb7 {[%clk 0:48:45]} 21. Bxb7 {[%clk 0:58:11]}  Be6 {[%clk 0:48:55]} 22. Ra3 {[%clk 0:56:50]}  Bc4 {[%clk 0:31:26]} 23. Rxa7 {[%clk 0:47:53]}  d3 {[%clk 0:26:56]} 24. Nf4 {[%clk 0:47:57]}  Bd4 {[%clk 0:19:30]} 25. Ra8 {[%clk 0:48:04]}  Rxa8 {[%clk 0:19:50]} 26. Bxa8 {[%clk 0:48:33]}  Bxa2 {[%clk 0:19:17]} 27. Bd5 {[%clk 0:39:00]}  Bb1 {[%clk 0:19:26]} 28. f3 {[%clk 0:39:08]}  Bc5 {[%clk 0:18:19]} 29. Bb3 {[%clk 0:38:08]}  Ba3 {[%clk 0:12:23]} 30. Nd5 {[%clk 0:37:17]}  Kg7 {[%clk 0:11:51]} 31. f4 {[%clk 0:36:20]}  Bb2 {[%clk 0:10:40]} 32. e5 {[%clk 0:36:15]}  g5 {[%clk 0:09:46]} 33. e6 {[%clk 0:35:51]}  gxf4 {[%clk 0:04:45]} 34. e7 {[%clk 0:36:17]}  Kf7 {[%clk 0:05:08]} 35. Ba4 {[%clk 0:36:46]} 1-0


[Site "http://www.chessbomb.com"]

[Event "World Junior Chess Championship U20 2022"]
[White "Galaviz Medina, Sion Radamantys"]
[Black "Tripodi, Enzo"]
[WhiteFideId "5123119"]
[BlackFideId "2822674"]
[WhiteElo "2345"]
[BlackElo "2113"]
[Result "1-0"]
[Round "03"]
[TimeControl "5400+30"]
[Date "2022.10.13"]
[WhiteClock "0:25:22"]
[BlackClock "0:55:10"]

1. d4 {[%clk 1:30:51]}  Nf6 {[%clk 1:30:47]} 2. c4 {[%clk 1:30:51]}  e6 {[%clk 1:31:12]} 3. Nc3 {[%clk 1:30:14]}  Bb4 {[%clk 1:31:23]} 4. Qc2 {[%clk 1:30:22]}  O-O {[%clk 1:31:45]} 5. a3 {[%clk 1:29:44]}  Bxc3+ {[%clk 1:32:03]} 6. Qxc3 {[%clk 1:30:12]}  b6 {[%clk 1:32:25]} 7. Bg5 {[%clk 1:27:51]}  Bb7 {[%clk 1:32:48]} 8. f3 {[%clk 1:24:56]}  h6 {[%clk 1:33:13]} 9. Bh4 {[%clk 1:24:53]}  d6 {[%clk 1:27:12]} 10. e3 {[%clk 1:18:42]}  Nbd7 {[%clk 1:24:35]} 11. Bd3 {[%clk 1:16:21]}  c5 {[%clk 1:23:37]} 12. Ne2 {[%clk 1:00:21]}  Rc8 {[%clk 1:23:18]} 13. Qd2 {[%clk 0:46:05]}  Qc7 {[%clk 0:59:51]} 14. O-O {[%clk 0:42:06]}  Rfe8 {[%clk 0:58:37]} 15. Rac1 {[%clk 0:41:19]}  Qb8 {[%clk 0:58:14]} 16. b4 {[%clk 0:27:27]}  d5 {[%clk 0:55:03]} 17. cxd5 {[%clk 0:22:58]}  cxd4 {[%clk 0:51:20]} 18. Nxd4 {[%clk 0:19:59]}  Nxd5 {[%clk 0:48:51]} 19. Bb5 {[%clk 0:15:47]}  Qd6 {[%clk 0:47:42]} 20. Bg3 {[%clk 0:15:22]}  Qe7 {[%clk 0:47:49]} 21. e4 {[%clk 0:15:32]}  N5f6 {[%clk 0:46:59]} 22. Bc6 {[%clk 0:15:49]}  Ba8 {[%clk 0:46:02]} 23. Bxa8 {[%clk 0:14:00]}  Rxc1 {[%clk 0:46:27]} 24. Rxc1 {[%clk 0:14:25]}  Rxa8 {[%clk 0:46:53]} 25. Rc7 {[%clk 0:14:39]}  Qe8 {[%clk 0:37:23]} 26. Nc6 {[%clk 0:14:17]}  a5 {[%clk 0:37:33]} 27. b5 {[%clk 0:13:59]}  Kh8 {[%clk 0:36:21]} 28. Qd6 {[%clk 0:13:41]}  Rc8 {[%clk 0:35:43]} 29. Rb7 {[%clk 0:04:23]}  Nc5 {[%clk 0:35:12]} 30. Re7 {[%clk 0:04:51]}  Qf8 {[%clk 0:34:56]} 31. Rc7 {[%clk 0:05:15]}  Qe8 {[%clk 0:32:59]} 32. Qe7 {[%clk 0:05:39]}  Qxe7 {[%clk 0:32:59]} 33. Nxe7 {[%clk 0:06:04]}  Rxc7 {[%clk 0:30:11]} 34. Bxc7 {[%clk 0:06:32]}  Nfd7 {[%clk 0:30:30]} 35. Nc8 {[%clk 0:05:24]}  Na4 {[%clk 0:30:55]} 36. Kf2 {[%clk 0:05:51]}  Nc3 {[%clk 0:31:08]} 37. Nd6 {[%clk 0:06:14]}  Nb1 {[%clk 0:25:31]} 38. Nc4 {[%clk 0:06:26]}  Nc3 {[%clk 0:25:56]} 39. Nxb6 {[%clk 0:06:24]}  Nxb5 {[%clk 0:25:36]} 40. Nxd7 {[%clk 0:06:49]}  Nxc7 {[%clk 0:26:02]} 41. a4 {[%clk 0:07:05]}  f6 {[%clk 0:22:22]} 42. Ke3 {[%clk 0:07:29]}  e5 {[%clk 0:22:28]} 43. Kd3 {[%clk 0:07:47]}  Kg8 {[%clk 0:21:27]} 44. Kc4 {[%clk 0:01:30]}  Kf7 {[%clk 0:21:53]} 45. Nc5 {[%clk 0:01:55]}  g6 {[%clk 0:21:20]} 46. Nb3 {[%clk 0:02:01]}  Ke6 {[%clk 0:21:45]} 47. Nxa5 {[%clk 0:02:10]}  Kd6 {[%clk 0:22:10]} 48. Nb7+ {[%clk 0:02:10]}  Kc6 {[%clk 0:52:38]} 49. Nc5 {[%clk 0:30:17]}  h5 {[%clk 0:52:43]} 50. Nd3 {[%clk 0:27:31]}  g5 {[%clk 0:52:43]} 51. Nb4+ {[%clk 0:27:17]}  Kd6 {[%clk 0:53:11]} 52. Nd5 {[%clk 0:25:03]}  Ne8 {[%clk 0:53:40]} 53. Kb5 {[%clk 0:24:28]}  f5 {[%clk 0:54:03]} 54. a5 {[%clk 0:24:12]}  fxe4 {[%clk 0:54:26]} 55. fxe4 {[%clk 0:24:37]}  Kd7 {[%clk 0:54:46]} 56. a6 {[%clk 0:24:43]}  Nd6+ {[%clk 0:55:06]} 57. Kb6 {[%clk 0:24:57]}  Nc4+ {[%clk 0:55:10]} 58. Kc5 {[%clk 0:25:22]} 1-0


[Site "http://www.chessbomb.com"]

[Event "World Junior Chess Championship U20 2022"]
[White "Utsab, Chatterjee"]
[Black "Dimakis, Stavros"]
[WhiteFideId "46609148"]
[BlackFideId "25879472"]
[WhiteElo "2345"]
[BlackElo "1832"]
[Result "1-0"]
[Round "03"]
[TimeControl "5400+30"]
[Date "2022.10.13"]
[WhiteClock "0:43:57"]
[BlackClock "0:00:35"]

1. e4 {[%clk 1:30:22]}  e6 {[%clk 1:30:55]} 2. d4 {[%clk 1:30:36]}  d5 {[%clk 1:31:20]} 3. Nd2 {[%clk 1:30:38]}  Be7 {[%clk 1:31:34]} 4. Bd3 {[%clk 1:30:48]}  Nf6 {[%clk 1:31:50]} 5. e5 {[%clk 1:30:52]}  Nfd7 {[%clk 1:32:13]} 6. Ne2 {[%clk 1:30:54]}  c5 {[%clk 1:32:19]} 7. c3 {[%clk 1:31:02]}  b6 {[%clk 1:32:06]} 8. O-O {[%clk 1:31:13]}  Ba6 {[%clk 1:32:02]} 9. Bxa6 {[%clk 1:30:29]}  Nxa6 {[%clk 1:32:26]} 10. Nf4 {[%clk 1:30:11]}  Nc7 {[%clk 1:16:48]} 11. Re1 {[%clk 1:28:41]}  a5 {[%clk 1:13:18]} 12. Nf3 {[%clk 1:28:50]}  c4 {[%clk 1:10:16]} 13. a4 {[%clk 1:27:19]}  b5 {[%clk 1:03:56]} 14. axb5 {[%clk 1:27:01]}  Nxb5 {[%clk 1:03:40]} 15. g3 {[%clk 1:26:11]}  Nb6 {[%clk 1:01:07]} 16. h4 {[%clk 1:23:36]}  a4 {[%clk 0:57:23]} 17. Qc2 {[%clk 1:13:59]}  Ra7 {[%clk 0:49:02]} 18. Nh5 {[%clk 1:08:33]}  g6 {[%clk 0:46:36]} 19. Nf4 {[%clk 1:05:11]}  Qc7 {[%clk 0:40:50]} 20. Nh3 {[%clk 1:02:13]}  a3 {[%clk 0:35:57]} 21. bxa3 {[%clk 1:02:29]}  Na4 {[%clk 0:35:14]} 22. Bd2 {[%clk 1:02:36]}  Nxa3 {[%clk 0:30:52]} 23. Qc1 {[%clk 1:02:55]}  Nb5 {[%clk 0:29:54]} 24. h5 {[%clk 1:01:08]}  O-O {[%clk 0:22:30]} 25. Kg2 {[%clk 1:00:59]}  Nb6 {[%clk 0:19:37]} 26. Rxa7 {[%clk 0:59:24]}  Qxa7 {[%clk 0:19:38]} 27. Rh1 {[%clk 0:59:07]}  Qa3 {[%clk 0:19:38]} 28. Qe1 {[%clk 0:59:30]}  Na4 {[%clk 0:14:44]} 29. hxg6 {[%clk 0:56:45]}  fxg6 {[%clk 0:09:09]} 30. Nhg5 {[%clk 0:54:09]}  Naxc3 {[%clk 0:08:23]} 31. Rxh7 {[%clk 0:53:18]}  Ne4 {[%clk 0:05:59]} 32. Bc1 {[%clk 0:46:08]}  Qa2 {[%clk 0:02:18]} 33. Rxe7 {[%clk 0:45:48]}  Nxd4 {[%clk 0:01:55]} 34. Nxe4 {[%clk 0:44:41]}  Rxf3 {[%clk 0:00:35]} 35. Qh1 {[%clk 0:43:57]} 1-0


[Site "http://www.chessbomb.com"]

[Event "World Junior Chess Championship U20 2022"]
[White "Parkhov, Yair"]
[Black "Avila Rodriguez, Joshua Ad"]
[WhiteFideId "2813408"]
[BlackFideId "5126444"]
[WhiteElo "2484"]
[BlackElo "2225"]
[Result "1/2-1/2"]
[Round "03"]
[TimeControl "5400+30"]
[Date "2022.10.13"]
[WhiteClock "0:03:56"]
[BlackClock "0:06:46"]

1. d4 {[%clk 1:30:57]}  Nf6 {[%clk 1:27:43]} 2. c4 {[%clk 1:31:22]}  e6 {[%clk 1:27:43]} 3. Nc3 {[%clk 1:31:48]}  Bb4 {[%clk 1:28:27]} 4. e3 {[%clk 1:32:14]}  O-O {[%clk 1:28:43]} 5. Bd3 {[%clk 1:32:39]}  d5 {[%clk 1:29:02]} 6. a3 {[%clk 1:33:05]}  Bxc3+ {[%clk 1:29:08]} 7. bxc3 {[%clk 1:33:29]}  dxc4 {[%clk 1:29:33]} 8. Bxc4 {[%clk 1:33:54]}  c5 {[%clk 1:29:44]} 9. Nf3 {[%clk 1:34:19]}  Qc7 {[%clk 1:30:03]} 10. Be2 {[%clk 1:34:44]}  b6 {[%clk 1:30:08]} 11. Bb2 {[%clk 1:35:06]}  Bb7 {[%clk 1:30:24]} 12. O-O {[%clk 1:35:16]}  Nbd7 {[%clk 1:30:48]} 13. c4 {[%clk 1:34:43]}  Rac8 {[%clk 1:30:01]} 14. Rc1 {[%clk 1:34:43]}  Rfd8 {[%clk 1:29:51]} 15. h3 {[%clk 1:32:39]}  Nf8 {[%clk 1:14:16]} 16. Qb3 {[%clk 1:31:46]}  Ng6 {[%clk 1:00:13]} 17. Rfe1 {[%clk 1:08:08]}  Bc6 {[%clk 1:00:13]} 18. a4 {[%clk 0:53:40]}  a5 {[%clk 0:32:08]} 19. Red1 {[%clk 0:53:40]}  Qb7 {[%clk 0:32:08]} 20. dxc5 {[%clk 0:45:18]}  Rxd1+ {[%clk 0:27:26]} 21. Bxd1 {[%clk 0:45:18]}  bxc5 {[%clk 0:27:47]} 22. Qxb7 {[%clk 0:43:57]}  Bxb7 {[%clk 0:28:12]} 23. Nd2 {[%clk 0:38:58]}  Bc6 {[%clk 0:08:45]} 24. Bc3 {[%clk 0:38:58]}  Nd7 {[%clk 0:08:43]} 25. Ra1 {[%clk 0:34:57]}  Ra8 {[%clk 0:08:43]} 26. Nb3 {[%clk 0:25:15]}  Nb6 {[%clk 0:07:34]} 27. Nxa5 {[%clk 0:25:39]}  Be8 {[%clk 0:07:32]} 28. Kf1 {[%clk 0:25:39]}  f6 {[%clk 0:07:34]} 29. f4 {[%clk 0:09:32]}  Ne7 {[%clk 0:04:57]} 30. Kf2 {[%clk 0:05:49]}  Ra7 {[%clk 0:04:04]} 31. Bb3 {[%clk 0:04:07]}  Kf7 {[%clk 0:03:21]} 32. g4 {[%clk 0:04:13]}  h6 {[%clk 0:01:44]} 33. e4 {[%clk 0:03:29]}  e5 {[%clk 0:01:17]} 34. f5 {[%clk 0:02:29]}  Nec8 {[%clk 0:01:34]} 35. Kf3 {[%clk 0:02:24]}  Nd6 {[%clk 0:01:35]} 36. h4 {[%clk 0:02:29]}  Ke7 {[%clk 0:01:14]} 37. Bd2 {[%clk 0:02:08]}  Kd7 {[%clk 0:00:50]} 38. Be1 {[%clk 0:01:04]}  Kc7 {[%clk 0:00:51]} 39. Ke3 {[%clk 0:00:49]}  Bf7 {[%clk 0:00:51]} 40. Kd3 {[%clk 0:01:06]}  Be8 {[%clk 0:00:46]} 41. Bc3 {[%clk 0:27:03]}  Nf7 {[%clk 0:27:06]} 42. Bc2 {[%clk 0:24:58]}  Ra8 {[%clk 0:25:19]} 43. Bb3 {[%clk 0:15:18]}  Rd8+ {[%clk 0:17:25]} 44. Ke3 {[%clk 0:14:31]}  Ra8 {[%clk 0:17:27]} 45. Bd2 {[%clk 0:13:30]}  Kc8 {[%clk 0:15:06]} 46. Kd3 {[%clk 0:13:21]}  Kc7 {[%clk 0:14:35]} 47. Bc2 {[%clk 0:12:56]}  Bd7 {[%clk 0:14:35]} 48. Be1 {[%clk 0:09:01]}  Be8 {[%clk 0:11:11]} 49. Bc3 {[%clk 0:06:47]}  Rd8+ {[%clk 0:06:31]} 50. Ke2 {[%clk 0:06:43]}  Ra8 {[%clk 0:06:29]} 51. Ke3 {[%clk 0:05:12]}  Bd7 {[%clk 0:06:09]} 52. Kd3 {[%clk 0:04:45]}  Be8 {[%clk 0:06:23]} 53. Ke3 {[%clk 0:03:56]}  Bd7 {[%clk 0:06:46]} 1/2-1/2


[Site "http://www.chessbomb.com"]

[Event "World Junior Chess Championship U20 2022"]
[White "Tan, Jun Ying"]
[Black "Olsen, Filip Boe"]
[WhiteFideId "5710413"]
[BlackFideId "1440640"]
[WhiteElo "2189"]
[BlackElo "2433"]
[Result "1-0"]
[Round "03"]
[TimeControl "5400+30"]
[Date "2022.10.13"]
[WhiteClock "0:35:38"]
[BlackClock "0:27:15"]

1. d4 {[%clk 1:30:45]}  Nf6 {[%clk 1:30:52]} 2. c4 {[%clk 1:31:09]}  e6 {[%clk 1:31:10]} 3. Nc3 {[%clk 1:31:35]}  Bb4 {[%clk 1:31:24]} 4. e3 {[%clk 1:31:56]}  O-O {[%clk 1:31:43]} 5. Ne2 {[%clk 1:32:19]}  Re8 {[%clk 1:31:55]} 6. a3 {[%clk 1:32:35]}  Bf8 {[%clk 1:32:13]} 7. Ng3 {[%clk 1:32:53]}  d5 {[%clk 1:32:08]} 8. Be2 {[%clk 1:32:56]}  b6 {[%clk 1:30:15]} 9. cxd5 {[%clk 1:33:05]}  exd5 {[%clk 1:30:26]} 10. O-O {[%clk 1:33:28]}  Bb7 {[%clk 1:29:01]} 11. b4 {[%clk 1:33:38]}  Nbd7 {[%clk 1:27:41]} 12. Qb3 {[%clk 1:33:53]}  c6 {[%clk 1:11:58]} 13. f3 {[%clk 1:33:57]}  a5 {[%clk 1:08:20]} 14. Rb1 {[%clk 1:34:10]}  axb4 {[%clk 1:08:20]} 15. axb4 {[%clk 1:34:33]}  b5 {[%clk 0:59:55]} 16. e4 {[%clk 1:33:36]}  Qb6 {[%clk 0:54:21]} 17. Qd1 {[%clk 1:18:01]}  Rad8 {[%clk 0:39:17]} 18. Kh1 {[%clk 1:10:26]}  dxe4 {[%clk 0:38:20]} 19. fxe4 {[%clk 1:10:45]}  Ne5 {[%clk 0:35:58]} 20. Be3 {[%clk 1:09:47]}  Nc4 {[%clk 0:33:03]} 21. Bxc4 {[%clk 1:07:00]}  bxc4 {[%clk 0:32:54]} 22. Rxf6 {[%clk 1:06:29]}  gxf6 {[%clk 0:32:26]} 23. Qg4+ {[%clk 0:51:33]}  Kh8 {[%clk 0:32:43]} 24. Qh4 {[%clk 0:50:30]}  Be7 {[%clk 0:19:43]} 25. Nf5 {[%clk 0:40:49]}  Qc7 {[%clk 0:19:38]} 26. Bf4 {[%clk 0:34:50]}  Qd7 {[%clk 0:19:40]} 27. Rf1 {[%clk 0:33:01]}  Bc8 {[%clk 0:17:04]} 28. Bd6 {[%clk 0:25:59]}  Qxd6 {[%clk 0:14:20]} 29. Nxd6 {[%clk 0:24:15]}  Rxd6 {[%clk 0:14:47]} 30. Qh5 {[%clk 0:23:18]}  Rf8 {[%clk 0:09:31]} 31. Rf4 {[%clk 0:22:18]}  f5 {[%clk 0:08:58]} 32. exf5 {[%clk 0:22:27]}  Rg8 {[%clk 0:07:36]} 33. Qxf7 {[%clk 0:15:44]}  Bg5 {[%clk 0:07:24]} 34. Rf1 {[%clk 0:15:25]}  Rf6 {[%clk 0:05:46]} 35. Qxc4 {[%clk 0:15:45]}  Bxf5 {[%clk 0:05:49]} 36. d5 {[%clk 0:15:22]}  Be3 {[%clk 0:02:09]} 37. dxc6 {[%clk 0:12:49]}  Be6 {[%clk 0:01:07]} 38. Qd3 {[%clk 0:13:00]}  Rxf1+ {[%clk 0:01:14]} 39. Qxf1 {[%clk 0:13:27]}  Bd4 {[%clk 0:01:18]} 40. Qd3 {[%clk 0:12:09]}  Bf6 {[%clk 0:00:41]} 41. Qd6 {[%clk 0:08:08]}  Re8 {[%clk 0:00:51]} 42. Nd5 {[%clk 0:05:57]}  Ra8 {[%clk 0:27:15]} 43. h3 {[%clk 0:35:38]} 1-0


[Site "http://www.chessbomb.com"]

[Event "World Junior Chess Championship U20 2022"]
[White "Johannsson, Birkir Isak"]
[Black "Cappelletto, Joshuaede"]
[WhiteFideId "2314673"]
[BlackFideId "2824383"]
[WhiteElo "2165"]
[BlackElo "2337"]
[Result "1-0"]
[Round "03"]
[TimeControl "5400+30"]
[Date "2022.10.13"]
[WhiteClock "0:01:59"]
[BlackClock "0:09:06"]

1. Nf3 {[%clk 1:28:36]}  c5 {[%clk 1:28:36]} 2. c4 {[%clk 1:28:19]}  Nc6 {[%clk 1:28:57]} 3. Nc3 {[%clk 1:28:40]}  g6 {[%clk 1:29:07]} 4. e3 {[%clk 1:28:44]}  Nf6 {[%clk 1:29:28]} 5. d4 {[%clk 1:29:02]}  cxd4 {[%clk 1:29:54]} 6. exd4 {[%clk 1:29:21]}  d5 {[%clk 1:30:20]} 7. cxd5 {[%clk 1:29:16]}  Nxd5 {[%clk 1:30:44]} 8. Qb3 {[%clk 1:29:22]}  e6 {[%clk 1:29:47]} 9. Bb5 {[%clk 1:29:16]}  Bg7 {[%clk 1:30:01]} 10. O-O {[%clk 1:29:24]}  O-O {[%clk 1:30:22]} 11. Bxc6 {[%clk 1:29:39]}  bxc6 {[%clk 1:30:47]} 12. Re1 {[%clk 1:29:27]}  Qb6 {[%clk 1:22:44]} 13. Qc2 {[%clk 1:19:52]}  Rb8 {[%clk 1:08:40]} 14. Na4 {[%clk 1:09:28]}  Qb5 {[%clk 1:07:22]} 15. Nc5 {[%clk 1:04:25]}  a5 {[%clk 1:07:14]} 16. b3 {[%clk 1:00:28]}  Nb4 {[%clk 1:04:04]} 17. Qc3 {[%clk 0:57:11]}  Rd8 {[%clk 0:59:12]} 18. Bb2 {[%clk 0:53:37]}  Rd5 {[%clk 0:58:59]} 19. Ne5 {[%clk 0:47:19]}  Ra8 {[%clk 0:51:27]} 20. h4 {[%clk 0:39:09]}  Na6 {[%clk 0:42:32]} 21. Ne4 {[%clk 0:32:07]}  f5 {[%clk 0:40:28]} 22. Ng5 {[%clk 0:21:54]}  c5 {[%clk 0:40:38]} 23. Rad1 {[%clk 0:21:11]}  Nb4 {[%clk 0:23:46]} 24. h5 {[%clk 0:11:24]}  h6 {[%clk 0:20:43]} 25. Ngf3 {[%clk 0:10:15]}  g5 {[%clk 0:20:06]} 26. a3 {[%clk 0:08:55]}  Nc6 {[%clk 0:19:44]} 27. a4 {[%clk 0:08:44]}  Qa6 {[%clk 0:15:54]} 28. dxc5 {[%clk 0:05:33]}  Nxe5 {[%clk 0:09:09]} 29. Rxd5 {[%clk 0:01:56]}  Nxf3+ {[%clk 0:09:22]} 30. Qxf3 {[%clk 0:02:24]}  Bxb2 {[%clk 0:09:19]} 31. Rd8+ {[%clk 0:02:39]}  Kh7 {[%clk 0:09:44]} 32. Rd6 {[%clk 0:01:40]}  Qb7 {[%clk 0:09:06]} 33. Qxb7+ {[%clk 0:01:59]} 1-0


[Site "http://www.chessbomb.com"]

[Event "World Junior Chess Championship U20 2022"]
[White "Zemach, Nadav"]
[Black "Nemeth, Zalan"]
[WhiteFideId "2820927"]
[BlackFideId "2512041"]
[WhiteElo "2293"]
[BlackElo "2247"]
[Result "1/2-1/2"]
[Round "03"]
[TimeControl "5400+30"]
[Date "2022.10.13"]
[WhiteClock "0:03:01"]
[BlackClock "0:19:12"]

1. d4 {[%clk 1:30:59]}  d5 {[%clk 1:28:55]} 2. c4 {[%clk 1:31:14]}  e6 {[%clk 1:29:21]} 3. Nf3 {[%clk 1:31:39]}  Nf6 {[%clk 1:29:48]} 4. g3 {[%clk 1:32:05]}  dxc4 {[%clk 1:30:15]} 5. Bg2 {[%clk 1:32:26]}  Bb4+ {[%clk 1:30:29]} 6. Bd2 {[%clk 1:30:50]}  a5 {[%clk 1:30:54]} 7. a3 {[%clk 1:31:16]}  Bxd2+ {[%clk 1:23:56]} 8. Nbxd2 {[%clk 1:31:44]}  b5 {[%clk 1:23:01]} 9. b3 {[%clk 1:32:08]}  cxb3 {[%clk 1:19:42]} 10. Qxb3 {[%clk 1:32:35]}  c6 {[%clk 1:18:44]} 11. O-O {[%clk 1:32:57]}  O-O {[%clk 1:17:04]} 12. Rfc1 {[%clk 1:32:37]}  Bb7 {[%clk 1:10:54]} 13. Qb2 {[%clk 1:32:51]}  Nbd7 {[%clk 1:08:32]} 14. Ne1 {[%clk 1:33:07]}  Qb8 {[%clk 1:04:19]} 15. Nd3 {[%clk 1:24:00]}  Rc8 {[%clk 1:04:44]} 16. e4 {[%clk 1:23:17]}  Ba6 {[%clk 0:57:12]} 17. e5 {[%clk 1:13:26]}  Nd5 {[%clk 0:57:38]} 18. Ne4 {[%clk 1:13:34]}  N5b6 {[%clk 0:47:23]} 19. Qe2 {[%clk 0:59:49]}  Rc7 {[%clk 0:43:13]} 20. Nd6 {[%clk 0:37:48]}  Nc4 {[%clk 0:42:49]} 21. Nc5 {[%clk 0:37:35]}  Nxc5 {[%clk 0:39:15]} 22. dxc5 {[%clk 0:38:03]}  Qa7 {[%clk 0:39:32]} 23. a4 {[%clk 0:25:39]}  Rd8 {[%clk 0:37:39]} 24. axb5 {[%clk 0:16:24]}  cxb5 {[%clk 0:37:59]} 25. c6 {[%clk 0:15:46]}  a4 {[%clk 0:30:51]} 26. Nxc4 {[%clk 0:15:30]}  bxc4 {[%clk 0:31:14]} 27. Rxa4 {[%clk 0:15:56]}  Qb6 {[%clk 0:27:31]} 28. h4 {[%clk 0:12:52]}  Rxc6 {[%clk 0:19:11]} 29. Bxc6 {[%clk 0:06:47]}  Qxc6 {[%clk 0:19:37]} 30. Rxa6 {[%clk 0:03:17]}  Qxa6 {[%clk 0:20:01]} 31. Qxc4 {[%clk 0:03:29]}  Qxc4 {[%clk 0:18:50]} 32. Rxc4 {[%clk 0:03:56]}  h5 {[%clk 0:19:12]} 33. Rc7 {[%clk 0:03:01]} 1/2-1/2


[Site "http://www.chessbomb.com"]